Cogmind - Beta 10.2 @@@ ROGUE MODE // 2021.02.19 @ 23:31:12 Player: aperiodic Result: Destroyed by 8R-AWN with 8R-AWN's Boregun Performance ------------- Evolutions (1) 500 Regions Visited (5) 1000 Robots Destroyed (82) 410 Value Destroyed (1811) 1811 Prototype IDs (32) 640 Alien Tech Used (0) 0 Bonus (590) 590 TOTAL SCORE: 4951 Bonus ------- High Alert Combat Kills 134 Follower Combat Kills 156 Aligned with FarCom 300 Cogmind --------- Core Integrity 0/400 Matter 157/300 Energy 100/100 System Corruption 0% Temperature Cool (0) Movement Core (100) Ox1 Location -9/Exiles Parts ------- > --- POWER (1) -------- (None) > --- PROPULSION (2) --- (None) > --- UTILITY (4) ------ Salvage Targeting Computer Improved Targeting Computer > --- WEAPON (2) ------- Heavy Assault Rifle Heavy Assault Rifle > --- INVENTORY (4) ---- (None) Peak State ------------ > --- POWER ------------ Nuclear Core > --- PROPULSION ------- Light Treads Improved Treads > --- UTILITY ---------- Improved Heat Sink Large Storage Unit High-capacity Storage Unit Hardened Light Armor Plating > --- WEAPON ----------- Improved EM Shotgun Improved EM Shotgun > --- INVENTORY -------- Nuclear Core Light Treads Light Treads Light Treads Medium Matter Pod Improved Targeting Computer Light Armor Plating Light Armor Plating Light Armor Plating Medium Armor Plating Shield Generator Improved Medium Laser Heavy Assault Rifle Heavy Assault Rifle Heavy Assault Rifle EMP Blaster Rocket Launcher Mining Laser [Rating: 22] Favorites ----------- Power Nuclear Core Engine Ion Engine Power Core Nuclear Core Propulsion Light Treads Treads Light Treads Utility High-capacity Storage Unit Device Improved Heat Sink Storage High-capacity Storage Unit Processor Improved Targeting Computer Protection Hardened Light Armor Plating Weapon Improved EM Shotgun Energy Gun Improved EM Shotgun Ballistic Gun Heavy Assault Rifle Ballistic Cannon Light Cannon Launcher Rocket Launcher Special Weapon Mining Laser Build | -11 -10 -10 -9 -9 -9 ------- Run | Scr Mat Min Mat Min Exi Slots Evolved 2 | . . . 2 . . Power . | . . . . . . Propulsion . | . . . . . . Utility 2 | . . . 2 . . Weapon . | . . . . . . Parts Attached 72 | 6 13 1 27 7 18 Power 7 | 1 2 . 3 . 1 Engine 3 | 1 2 . . . . Core 4 | . . . 3 . 1 Reactor . | . . . . . . Propulsion 10 | 2 2 . 3 2 1 Treads 10 | 2 2 . 3 2 1 Leg . | . . . . . . Wheel . | . . . . . . Hover . | . . . . . . Flight . | . . . . . . Utility 21 | 1 3 1 4 2 10 Device 5 | . 1 . 1 1 2 Storage 6 | 1 2 1 . . 2 Processor 3 | . . . 1 . 2 Hackware . | . . . . . . Protection 7 | . . . 2 1 4 Artifact . | . . . . . . Weapon 34 | 2 6 . 17 3 6 Energy Gun 15 | 2 4 . 8 1 . Energy Cannon . | . . . . . . Ballistic Gun 7 | . . . . 2 5 Ballistic Cannon 7 | . 1 . 6 . . Launcher 3 | . . . 2 . 1 Special Weapon 2 | . 1 . 1 . . Impact Weapon . | . . . . . . Slashing Weapon . | . . . . . . Piercing Weapon . | . . . . . . Special Melee Weapon . | . . . . . . Unidentified Prototypes 1 | . . . 1 . . Parts Lost 13 | . . . 3 1 9 Power 3 | . . . 2 . 1 Propulsion 2 | . . . . . 2 Utility 3 | . . . . . 3 Weapon 5 | . . . 1 1 3 Highest Loss Streak 9 | . . . 2 1 9 Average Slot Usage (%) 97 | . 94 100 99 100 92 Engine 4 | . 14 14 2 . . Core 7 | . . . 8 11 10 Treads 23 | . 28 28 22 22 21 Device 5 | . 5 8 . 9 5 Storage 19 | . 17 19 22 22 13 Processor 5 | . . . 10 . 11 Protection 7 | . . . 9 12 7 Energy Gun 13 | . 25 14 10 19 . Ballistic Gun 4 | . . . . 2 21 Ballistic Cannon 4 | . 2 14 11 . . Naked Turns . | . . . . . . Heaviest Build 141 | 11 44 59 67 73 141 Greatest Support 43 | 40 40 40 43 43 43 Greatest Overweight (x) 22 | . 1 1 1 22 3 Average Overweight (x) . | . . 1 1 1 1 Largest Inventory Capacity 38 | 6 12 18 18 18 38 Average Capacity 16 | 5 9 14 18 18 16 Most Carried 31 | 4 12 18 18 18 31 Average Carried 14 | 2 7 13 17 17 13 Final Capacity 18 | 6 12 18 18 18 4 Final Carried 18 | 3 12 16 18 18 . Class Distribution -------------------- 94% | Mutant 5% | Hauler-Mutant Dominant Class ---------------- Mutant | -10/Materials Mutant | -10/Mines Mutant | -9/Materials Mutant | -9/Mines Mutant | -9/Exiles Resources | -11 -10 -10 -9 -9 -9 ----------- Run | Scr Mat Min Mat Min Exi Matter Collected 1607 | 260 121 18 768 70 370 Remotely . | . . . . . . Salvage Created 2756 | 138 431 23 2011 137 16 Parts 166 | 8 36 2 110 10 . Haulers Intercepted 6 | . 2 . 4 . . Recyclers Shooed 3 | . 1 . 2 . . Parts Field Recycled . | . . . . . . Retrieved Matter . | . . . . . . Parts Self-Destructed . | . . . . . . Prevented . | . . . . . . Kills | -11 -10 -10 -9 -9 -9 ------- Run | Scr Mat Min Mat Min Exi Combat Hostiles Destroyed 53 | . 10 . 37 3 3 Guns 24 | . 10 . 11 3 . Cannons 14 | . . . 14 . . AOE 15 | . . . 12 . 3 Classes Destroyed 14 | 3 5 . 5 1 . Worker 5 | 1 . . 4 . . Builder 2 | . . . 2 . . Tunneler 4 | 3 . 1 . . . Hauler 6 | . 2 . 4 . . Recycler 7 | 1 . . 6 . . Mechanic 1 | . . . 1 . . Operator 1 | . 1 . . . . Watcher 7 | . 2 . 5 . . Swarmer 13 | . 6 . 7 . . Grunt 23 | . 4 . 19 . . Brawler 1 | . . . 1 . . Protector 1 | . . . 1 . . Sentry 11 | . . . 9 2 . Assembled 4 | . . . . 1 3 Best Kill Streak 12 | 4 3 1 12 2 3 Combat Bots Only 9 | . 3 . 9 2 3 Max Kills in Single Turn 3 | 1 1 1 3 1 2 Gunslinging . | . . . . . . Exploded 3 | . . . 3 . 2 Melee . | . . . . . . Uniques/NPCs Destroyed . | . . . . . . Combat | -11 -10 -10 -9 -9 -9 -------- Run | Scr Mat Min Mat Min Exi Damage Taken 2943 | . 368 8 1286 199 1082 Core 452 | . 51 . 144 41 216 Absorbed by Shields 134 | . . . . . 134 Core Remaining (%) 89 | 100 . 79 . . . Volleys Fired 227 | 9 55 3 106 6 48 Largest 2 | 2 2 2 2 2 2 Hottest 112 | 80 112 91 112 101 46 Shots Fired 427 | 18 107 6 190 12 94 Gun 306 | 18 104 3 77 12 92 Cannon 101 | . . 3 98 . . Launcher 14 | . . . 12 . 2 Special 6 | . 3 . 3 . . Kinetic 193 | . . 3 98 . 92 Thermal 163 | 18 107 3 32 3 . Explosive 14 | . . . 12 . 2 Electromagnetic 57 | . . . 48 9 . Robot Hit Streak 18 | 7 9 3 17 12 18 Robot Miss Streak 5 | 1 5 2 3 3 1 Penetration Max . | . . . . . . Secondary Targets 1 | . . . . 1 . Max Gunslinging Chain 1 | . . . . 1 . Shots Hit Robots 296 | 10 59 3 134 10 80 Core Hits 150 | 6 24 2 92 6 20 Critical Hits 2 | . . . 1 . 1 Critical Kills . | . . . . . . Critical Parts Destroyed 1 | . . . 1 . . Melee Attacks . | . . . . . . Impact . | . . . . . . Slashing . | . . . . . . Piercing . | . . . . . . Sneak Attacks . | . . . . . . Combat Hostiles . | . . . . . . Follow-up Attacks . | . . . . . . Damage Inflicted 5974 | 134 713 59 3459 178 1431 Guns 3408 | 134 686 29 1163 172 1224 Cannons 1002 | . . 17 985 . . Explosions 1487 | . . . 1280 . 207 Melee . | . . . . . . Ramming 77 | . 27 13 31 6 . Kinetic 2226 | . . 17 985 . 1224 Thermal 1383 | 134 686 29 497 37 . Explosive 1405 | . . . 1198 . 207 Electromagnetic 883 | . . . 748 135 . Impact . | . . . . . . Slashing . | . . . . . . Piercing . | . . . . . . Highest Corruption . | . . . . . . Average Corruption . | . . . . . . Corruption Purged . | . . . . . . Overload Shots . | . . . . . . Overflow Damage 42 | . . . 42 . . Projectiles 5 | . . . 5 . . Explosions 37 | . . . 37 . . Melee . | . . . . . . Knockbacks 7 | . . . 7 . . Impact . | . . . . . . Kinetic 7 | . . . 7 . . Secondary . | . . . . . . Self-Inflicted Damage 135 | . . . 135 . . Shots 4 | . . . 4 . . Rammed 15 | . 4 3 6 2 . Targets Rammed 16 | . 4 3 7 2 . Kicked . | . . . . . . Crushed 1 | . . . 1 . . Highest Temperature 350 | 126 210 30 350 45 . Average Temperature 75 | 55 55 18 89 26 . Received Heat Transfer 507 | . 72 . 372 63 . Effects 3 | . 1 . 2 . . Shutdowns 1 | . . . 1 . . Energy Bleed 1 | . 1 . . . . Short Circuit 1 | . . . 1 . . Siege Activations . | . . . . . . Robots Corrupted . | . . . . . . Combat Hostiles . | . . . . . . Parts Fried 4 | . . . 3 1 . Impact Corruptions . | . . . . . . Robots Melted . | . . . . . . Combat Hostiles . | . . . . . . Parts Melted 7 | . 3 1 2 1 . Heat Transferred 3081 | 300 1571 74 1062 74 . Parts Sabotaged . | . . . . . . Parts Stolen . | . . . . . . Parts Stripped . | . . . . . . Power Chain Reactions 3 | . . . 3 . . Missiles Intercepted . | . . . . . . Alert | -11 -10 -10 -9 -9 -9 ------- Run | Scr Mat Min Mat Min Exi Peak Influence 671 | 25 212 81 671 78 . Initial 78 | . 16 35 26 78 . Average 137 | 9 97 38 363 13 . Maximum Alert Level 2 | . 1 . 2 . . Low Security (%) 74 | 100 87 100 23 100 . Level 1 11 | . 12 . 31 . . Level 2 13 | . . . 45 . . Level 3 . | . . . . . . Level 4 . | . . . . . . Level 5 . | . . . . . . High Security . | . . . . . . Max Security . | . . . . . . Squads Dispatched 6 | . 2 1 3 . . Investigation 2 | . 1 . 1 . . Extermination . | . . . . . . Reinforcement 1 | . 1 . . . . Assault 3 | . . 1 2 . . Garrison . | . . . . . . Intercept . | . . . . . . Construction Impeded . | . . . . . . Haulers Reinforced . | . . . . . . Stealth | -11 -10 -10 -9 -9 -9 --------- Run | Scr Mat Min Mat Min Exi Distress Signals 7 | . 2 . 3 2 . Communications Jammed . | . . . . . . Distress Signals . | . . . . . . Times Spotted 90 | . 22 8 54 2 4 Peak Tracking Total 9 | . 3 4 7 2 9 Tactical Retreats 7 | . 5 . 2 . . Traps | -11 -10 -10 -9 -9 -9 ------- Run | Scr Mat Min Mat Min Exi Traps Triggered 1 | . . . 1 . . Indirectly . | . . . . . . Trap Hack Attempts . | . . . . . . Triggered . | . . . . . . Disarmed . | . . . . . . Reprogrammed . | . . . . . . Reused . | . . . . . . Traps Extracted . | . . . . . . Installed . | . . . . . . Triggered . | . . . . . . Exploded 3 | . . . . . 3 Machines | -11 -10 -10 -9 -9 -9 ---------- Run | Scr Mat Min Mat Min Exi Machines Disabled 6 | . . . 4 . 2 Max in Single Turn 1 | . . . 1 . 1 Machines Sabotaged . | . . . . . . Garrisons Compromised . | . . . . . . Overloaded Fab Kills . | . . . . . . Fab Network Shutdowns . | . . . . . . Hacking | -11 -10 -10 -9 -9 -9 --------- Run | Scr Mat Min Mat Min Exi Machines Accessed 16 | . 5 . 9 . 2 Terminals 12 | . 5 . 7 . . Fabricators . | . . . . . . Repair Stations 1 | . . . 1 . . Recycling Units . | . . . . . . Scanalyzers 1 | . . . 1 . . Garrison Access . | . . . . . . Total Hacks 53 | . 21 . 30 . 2 Successful 29 | . 10 . 17 . 2 Failed 23 | . 10 . 13 . . Catastrophic 2 | . . . 2 . . Database Lockouts 1 | . 1 . . . . Manual 31 | . 15 . 15 . 1 Terminals 46 | . 21 . 25 . . Fabricators . | . . . . . . Repair Stations 3 | . . . 3 . . Recycling Units . | . . . . . . Scanalyzers 2 | . . . 2 . . Garrison Access . | . . . . . . Terminal Hacks 20 | . 7 . 11 . 2 Record 1 | . . . . . 1 Robot Analysis 3 | . . . 3 . . Prototype ID Bank 7 | . 4 . 3 . . Branch Access Points 1 | . . . 1 . . Unreport Threat 3 | . . . 3 . . Locate Traps 4 | . 3 . 1 . . EX-Prototype ID Bank 1 | . . . . . 1 Fabricator Hacks . | . . . . . . Repair Station Hacks 2 | . . . 2 . . Scan Component 1 | . . . 1 . . Repair 1 | . . . 1 . . Recycling Unit Hacks . | . . . . . . Scanalyzer 2 | . . . 2 . . Insert Component 1 | . . . 1 . . Analyze 1 | . . . 1 . . Garrison Access Hacks . | . . . . . . Unauthorized Hacks 5 | . 3 . 2 . . Terminals 5 | . 3 . 2 . . Track 3 | . 2 . 1 . . Botnet 1 | . 1 . . . . Operators 1 | . . . 1 . . Fabricators . | . . . . . . Repair Stations . | . . . . . . Recycling Units . | . . . . . . Scanalyzers . | . . . . . . Garrison Access . | . . . . . . Data Cores Recovered . | . . . . . . Used . | . . . . . . Hacking Detections 13 | . 5 . 8 . . Full Trace Events 2 | . 1 . 1 . . Feedback Events . | . . . . . . Feedback Blocked . | . . . . . . Robot Schematics Acquired . | . . . . . . Robots Built . | . . . . . . Matter . | . . . . . . Time . | . . . . . . Total Robot Build Rating . | . . . . . . Part Schematics Acquired 1 | . . . 1 . . Parts Built . | . . . . . . Matter . | . . . . . . Time . | . . . . . . Total Part Build Rating . | . . . . . . Parts Repaired 1 | . . . 1 . . Time 32 | . . . 32 . . Parts Recycled . | . . . . . . Recycled Matter . | . . . . . . Retrieved Matter . | . . . . . . Retrieved Components . | . . . . . . Parts Scanalyzed 1 | . . . 1 . . Part Schematics Acquired 1 | . . . 1 . . Parts Damaged . | . . . . . . Bothacking | -11 -10 -10 -9 -9 -9 ------------ Run | Scr Mat Min Mat Min Exi Used RIF Installer . | . . . . . . Robots Hacked . | . . . . . . Non-combat . | . . . . . . Combat . | . . . . . . Robot Hacks Applied . | . . . . . . Relay Couplers Released . | . . . . . . Robots Rewired . | . . . . . . Allies Hacked . | . . . . . . Hacks Repelled . | . . . . . . Allies | -11 -10 -10 -9 -9 -9 -------- Run | Scr Mat Min Mat Min Exi Total Allies 4 | . . 4 . . . Largest Group 4 | . . 4 2 . . Highest-Rated Group 71 | . . 71 47 . . Highest-Rated Ally 31 | . . 31 31 . . Total Orders . | . . . . . . Ally Attacks 32 | . . 23 9 . . Total Damage 302 | . . 234 68 . . Kills 8 | . . 7 1 . . Allies Corrupted . | . . . . . . Allies Melted . | . . . . . . Intel | -11 -10 -10 -9 -9 -9 ------- Run | Scr Mat Min Mat Min Exi Robot Analysis Total 3 | . . . 3 . . Derelict Logs Recovered 3 | . . 2 . 1 . Drone Launches . | . . . . . . Drone Recoveries . | . . . . . . Exploration | -11 -10 -10 -9 -9 -9 ------------- Run | Scr Mat Min Mat Min Exi Turns Passed 9916 | 113 1441 1043 2473 3067 1779 Spaces Moved 3661 | 54 647 561 1117 428 854 Core 25 | 13 . . . 12 . Treads 3636 | 41 647 561 1117 416 854 Legs . | . . . . . . Wheels . | . . . . . . Hover . | . . . . . . Flight . | . . . . . . Fastest Speed 50 | 50 160 180 180 180 160 Average Speed 180 | 133 166 180 180 207 180 Slowest Speed 1150 | 160 180 180 180 1150 220 Overloaded Moves . | . . . . . . Propulsion Burnouts . | . . . . . . Robots Hopped . | . . . . . . Cave-ins Triggered . | . . . . . . Exploration Rate (%) 69 | 4 87 99 84 74 70 Regions Visited 5 Branch Regions 3 Pre-discovered Areas 2 | . . 1 . . 1 Known Exits Taken 1 | . . . 1 . . Unknown Exits Taken 4 | 1 1 1 . 1 . Scrap Searched 2 | . . 1 . 1 . Spaces Dug 4 | . 2 . 2 . . Terrain Destroyed 145 | . 3 . 125 . 17 Melee . | . . . . . . Projectile 6 | . 3 . 3 . . AOE 139 | . . . 122 . 17 Terrain Rammed . | . . . . . . Walls Destroyed . | . . . . . . Machines Disabled . | . . . . . . Actions | -11 -10 -10 -9 -9 -9 --------- Run | Scr Mat Min Mat Min Exi Total 6554 | 77 903 587 1384 2597 1006 Wait 2429 | . 157 10 75 2145 42 Move 3656 | 53 646 560 1116 427 854 Hop . | . . . . . . Pick Up 89 | 9 17 7 27 4 25 Fast Attach 12 | . 1 . 6 2 3 Attach 21 | 6 1 . 4 1 9 Detach 1 | . . . . . 1 Swap 39 | . 11 1 17 4 6 Drop 64 | . 11 3 26 6 18 Fire 227 | 9 55 3 106 6 48 Melee . | . . . . . . Ram . | . . . . . . Kick . | . . . . . . Crush 16 | . 4 3 7 2 . Escape Stasis . | . . . . . . Rewire . | . . . . . . Trap . | . . . . . . Miscellaneous . | . . . . . . Route ------- -11/Scrapyard -10/Materials (discovered 4 exits: *Mat x2 / [*Min x2]) -10/Mines (discovered 2 exits: *Mat x2) -9/Materials (discovered 5 exits: [*Mat x2] / *Min x2 / *Sto) -9/Mines (discovered 2 exits: [*Mat] / *Exi) -9/Exiles (discovered 1 exit: [*Min]) History --------- Turn | Location | Event 11 | -11/Scrapyard | Discovered new exit (range 16) 114 | -11/Scrapyard | Entered Materials 212 | -10/Materials | Discovered new exit (range 15) 305 | -10/Materials | Build established: Mutant 445 | -10/Materials | Discovered new exit (range 13) 565 | -10/Materials | Discovered new exit (range 12) 1120 | -10/Materials | Central database locked down 1441 | -10/Materials | Discovered new exit (range 11) 1555 | -10/Materials | Entered Mines 1620 | -10/Mines | Learned location of Storage (-9) 1665 | -10/Mines | Assisted by bots powering up and referring to "LRC-V3" 1855 | -10/Mines | Learned Materials emergency access door positions 2216 | -10/Mines | Found a hidden stash of uninstalled traps 2421 | -10/Mines | Discovered new exit (range 2) 2422 | -10/Mines | Met a Derelict testing a Signal Generator 2430 | -10/Mines | Found Signal Generator 2570 | -10/Mines | Discovered new exit (range 12) 2598 | -10/Mines | Entered Materials 2598 | -9/Materials | Accompanied by 2 allies 2598 | -9/Materials | Evolved 2 slots: Utility x2 2998 | -9/Materials | Discovered new exit (range 8) 3119 | -9/Materials | Discovered new exit (range 9) 3973 | -9/Materials | Discovered new exit (range 16) 4176 | -9/Materials | Discovered new exit (range 4) 4198 | -9/Materials | First assault squad dispatched 4263 | -9/Materials | Destroyed 9 combat bots 4821 | -9/Materials | Repaired Hrd. Light Armor Plating 4911 | -9/Materials | Identified exit to Mines 4911 | -9/Materials | Identified exit to Storage 4939 | -9/Materials | Discovered new exit (range 16) 5071 | -9/Materials | Entered Mines 5179 | -9/Mines | Assembled infested the area 7764 | -9/Mines | Learned Materials non-interactive machine intel 7773 | -9/Mines | Discovered new exit (range 5) 8125 | -9/Mines | Deemed a non-threat by the Exiles lab entrance 8131 | -9/Mines | Discovered new exit (range 5) 8138 | -9/Mines | Entered Exiles 8183 | -9/Exiles | Met 8R-AWN 8209 | -9/Exiles | Met EX-HEX 8327 | -9/Exiles | Met EX-DEC 8366 | -9/Exiles | Learned location of Zion (-6) 8564 | -9/Exiles | Met EX-BIN 8569 | -9/Exiles | Build established: Hauler-Mutant 8595 | -9/Exiles | Aligned with FarCom system 8597 | -9/Exiles | Given EX-Vault access code 8648 | -9/Exiles | Opened EX-Vault 8696 | -9/Exiles | Warned to stay clear of 0b10 Research branches 8830 | -9/Exiles | Discovered new exit (range 14) 9162 | -9/Exiles | Build established: Mutant 9688 | -9/Exiles | Attacked by the Exiles 9720 | -9/Exiles | Core integrity fell below 50% 9889 | -9/Exiles | Core integrity fell below 20% 9917 | -9/Exiles | Destroyed by 8R-AWN with 8R-AWN's Boregun Last Messages --------------- 09871_ Nuclear Core destroyed. 09871_ Penetrated by HV Slug. 09879_ Critical hit. 09879_ Med. Armor Plating destroyed. 09879_ Penetrated by HV Slug. 09883_ Critical hit. 09883_ Lgt. Treads destroyed. 09888_ Penetrated by HV Slug. 09895_ 8R-AWN suffers critical hit. 09896_ Penetrated by HV Slug. 09900_ Critical hit. 09900_ Hvy. Assault Rifle destroyed. 09900_ Penetrated by HV Slug. 09905_ Critical hit. 09905_ Hvy. Assault Rifle destroyed. 09905_ HV Slug penetrates Wall. 09909_ HV Slug penetrates Earth. 09909_ Penetrated by HV Slug. 09909_ HV Slug penetrates Earth. 09913_ Penetrated by HV Slug. Map ----- +----------------------------------------------------+ | ?????????????????????????????????????????????????? | | ?????????#####???????????????????????????????????? | | ????????## ##??????????????????????????????????? | | ????????# #??????????????????????????????????? | | ????????# < #??????????????????????????????????? | | ????????# ###????????????????????????????????? | | ????????# | #????????????????????????????????? | | ????????# ! ##????????????????????????????????? | | ????????## != #?????????????????????????????????? | | ?????????# !* !##????????????????????????????????? | | ?????????## !!= #????????????#######?????????????? | | ??????????# !! !#######??????#!!! "#?????????????? | | ??????????# ! !! #""##?????# "#?????????????? | | ??????????## #?????# "#?????????????? | | ???????????##" ##???## ""#????????????## | | ???????????#"" #####" ""#???????????? | | ???????????#### ##" ""#????????????" | | ??????????????## #"" #?????????????"" | | ???????????????#"## #????????????#"" | | ???????????????####### ##???????????#"" | | ?????????????????????### "###?????????? | | ???????????????######## ????????" | | ???????????????# """" ????????# | | ???????????????# g ###" ###???### | | ???????????????# ]] #?##" "" #####X# | | ???????????????# ! @##??#" | | ???????????????# !"""" ;;; ??#"# * | | ???????????????########## ##?#### | | ???????????????????????? ?????### | | ????????????????????????# # #??????### | | ????????????????????????# ##????????## | | ????????????????????????# #???????????## | | ???????????????????????? #????????????##" | | ???????????????????????? #?????????????#""" | | ????????????????????????# ?????????????##" | | ????????????????????????? ?????????????#"" | | ????????????????????????? ?????????????#""" | | ????????????????????????? ????????????#""" | | ????????????????????????? ????????????#""" | | ????????????????????????? ????????????#"" | | ????????????????????????? ????????????#""" | | ??????????????????????????????????????#"" | | ??????????????????????????????????????##"" | | ???????????????????????????????????????#"""" | | ????????????????????????????????????????# | | ????????????????????????????????????????#" | | ????????????????????????????????????????#"""" | | ????????????????????????????????????????#"" | | ?????????????????????????????????????????" | | ?????????????????????????????????????????""" | +----------------------------------------------------+ Best States ------------- Heat Dissipation 42 Energy Generation 14 Energy Capacity 250 Matter Stores 300 Matter Capacity 300 Sight Range 16 Terrain Scan Density 10 Armor Coverage 450 Evasion (%) 50 Targeting Accuracy 6 Recoil Reduction 2 Salvage Targeting 1 Item Schematics ----------------- Med. Storage Unit | -9/Materials | Scanalyzed Robot Schematics ------------------ None Fabricated ------------ Nothing Alien Tech Used ----------------- None Achievements -------------- None Challenges ------------ None Game ------ Seed SingularityIonicMachine Manual? 0 Play Time 00:56:25 Cumulative 332.1 hours Start 2021.02.19 @ 22:32:01 End 2021.02.19 @ 23:31:12 Sessions 1 Manual Loads 0 Difficulty Rogue Special Mode None Game No. 116 Rogue 112 Adventurer 4 Explorer 0 Win Type - Total 8 Types 4/1/3/0/0/0/0/0/0 Lore% 75 Gallery% 79 Achievement% 64 Wizard Run 0 Options --------- ASCII 1 Keyboard 0 Movement Arrows Keybinds 0 Fullscreen 1 Font 18/SmallcapsGlow Map View 76x50 Tactical HUD 1 Map Filters NONE Filters NONE Steam 1 RUN: 22963f1a-27d1-43e7-bc9e-1b37ef42c7c1